fUSD/lending_fUSD_20240618
["ID","MTS","AMOUNT","RATE_DAILY","PERIOD"]
[329821531,1718699457513,-500.0,0.00022,2]
[329821532,1718699457522,-95379.64728616,0.0002219,7]
[329821533,1718699457552,-493.706,0.0002219,7]
[329821536,1718699503354,-155.02642,0.00026027,30]
[329821537,1718699503457,-4999844.97358,0.00027,120]
[329821538,1718699506821,-5000000.0,0.00027,120]
[329821539,1718699510417,-5000000.0,0.00027,120]
[329821541,1718699528420,-5000000.0,0.00027,120]
[329821543,1718699531927,-5000000.0,0.00027,120]
[329821544,1718699536029,-5000000.0,0.00027,120]
[329821545,1718699544676,-5000000.0,0.00027,120]
[329821546,1718699549431,-5000000.0,0.00027,120]
[329821547,1718699614980,-3485989.7647976,0.00027,120]
[329821548,1718699615006,-2000.0,0.00027,30]
[329821549,1718699615029,-2000.0,0.00027,30]
[329821550,1718699615079,-1903.93636837,0.0002736,120]
[329821551,1718699615103,-150.0,0.00027397,30]
[329821552,1718699615128,-726.95,0.00027397,30]
[329821553,1718699615152,-726.95,0.00027397,30]
[329821554,1718699615174,-726.95,0.00027397,30]
[329821555,1718699615196,-726.95,0.00027397,30]
[329821556,1718699615219,-726.95,0.00027397,30]
[329821557,1718699615243,-726.95,0.00027397,30]
[329821558,1718699615267,-726.95,0.00027397,30]
[329821559,1718699615294,-726.95,0.00027397,30]
[329821560,1718699615318,-726.95,0.00027397,30]
[329821561,1718699615342,-726.95,0.00027397,30]
[329821562,1718699615364,-726.95,0.00027397,30]
[329821563,1718699615386,-726.95,0.00027397,30]
[329821564,1718699615408,-726.95,0.00027397,30]
[329821565,1718699615430,-726.95,0.00027397,30]
[329821566,1718699615452,-726.95,0.00027397,30]
[329821567,1718699615474,-726.95,0.00027397,30]
[329821568,1718699615496,-726.95,0.00027397,30]
[329821569,1718699615519,-726.95,0.00027397,30]
[329821570,1718699615542,-726.95,0.00027397,30]
[329821571,1718699615564,-726.95,0.00027397,30]
[329821572,1718699615587,-726.95,0.00027397,30]
[329821573,1718699615621,-2000.0,0.00027397,30]
[329821574,1718699615643,-2000.0,0.00027397,30]
[329821575,1718699615665,-2000.0,0.00027397,30]
[329821576,1718699615688,-2000.0,0.00027397,30]
[329821577,1718699615711,-2000.0,0.00027397,30]
[329821578,1718699615735,-2000.0,0.00027397,30]
[329821579,1718699615758,-185.11583539,0.00027397,30]
[329821586,1718699742906,97863.06957647,0.00022,30]
[329821591,1718699826044,900000.0,0.00023,120]
[329821592,1718699826066,401976.65426503,0.00023,120]
[329821593,1718699826091,900000.0,0.00023,120]
[329821689,1718700633560,-155.0,0.00012999,2]
[329821690,1718700633570,-19590.0374176,0.00012999,2]
[329821691,1718700633580,-3505.79860126,0.00013,2]
[329821692,1718700633590,-1000.0,0.000135,2]
[329821693,1718700633600,-194.4403,0.000139,2]
[329821694,1718700633610,-6808.45569857,0.000139,2]
[329821695,1718700633641,-2231.96012977,0.000139,2]
[329821696,1718700633665,-74757.08108191,0.000139,2]
[329821713,1718700638184,-19389.25678975,0.000139,2]
[329821714,1718700638196,-150.0,0.00013973,2]
[329821715,1718700638208,-205.87538729,0.00013998,2]
[329821716,1718700638218,-1105.09321305,0.00013998,2]
[329821717,1718700638228,-792.73133039,0.00013998,2]
[329821718,1718700638238,-156.94653221,0.00013998,2]
[329821719,1718700638249,-155.0,0.00013998,2]
[329821720,1718700638259,-762.11180794,0.00013998,2]
[329821721,1718700638270,-155.64076621,0.00013999,2]
[329821722,1718700638281,-155.0,0.00013999,2]
[329821723,1718700638291,-159.73084833,0.00013999,2]
[329821724,1718700638301,-37269.91779533,0.00014,2]
[329821725,1718700638313,-1000.51593,0.00014,2]
[329821726,1718700638339,-512.92239275,0.00014,2]
[329821727,1718700638368,-15341.52764072,0.00014,2]
[329821728,1718700638403,-3145.12011062,0.00014,2]
[329821729,1718700638476,-2982.2275418,0.00014,2]
[329821730,1718700638488,-288.12424113,0.00014,2]
[329821776,1718700640393,-688.83491256,0.00014,2]
[329821777,1718700640405,-1926.20345137,0.00014,2]
[329821778,1718700640667,-1319.0,0.00014,2]
[329821779,1718700640735,-33895.72620309,0.00014,2]
[329821780,1718700640749,-737.24414461,0.00014,2]
[329821781,1718700640762,-27109.93616836,0.00014,2]
[329821782,1718700640774,-8212.99701687,0.00014,2]
[329821818,1718700643423,-843.4,0.00014,2]
[329821819,1718700643498,-376.16154095,0.00014,2]
[329821820,1718700643660,-274.733615,0.00014,2]
[329821821,1718700643672,-6097.53713783,0.00014,2]
[329821826,1718700643731,-4476.53841018,0.00014,2]
[329821827,1718700643843,-1650.31387522,0.00014,2]
[329821836,1718700646444,-1534.93458374,0.00014,2]
[329821837,1718700646507,-382.51727014,0.00014,2]
[329821838,1718700646706,-251.63096553,0.00014,2]
[329821839,1718700646717,-507.94999234,0.00014,2]
[329821840,1718700646729,-10606.32078286,0.00014,2]
[329821850,1718701323775,3834.64381779,0.00013894,7]
[329821874,1718701832444,-457.29170079,0.00013869,2]
[329821879,1718701839025,-305.02384942,0.00013869,2]
[329821880,1718701839035,-415.07899166,0.0001387,2]
[329821881,1718701839045,-152.41692298,0.00013893,2]
[329821882,1718701839057,-147.58307702,0.00013893,2]
[329821883,1718701839068,-203.97763677,0.00013894,2]
[329821884,1718701839081,-96.06668999,0.00013894,2]
[329821885,1718701839091,-7544.54982485,0.00013894,2]
[329821886,1718701839102,-155.0,0.00013894,2]
[329821887,1718701839112,-10586.89656052,0.00013894,2]
[329821888,1718701839259,-833.28514564,0.00013894,2]
[329821889,1718701839271,-796.44791203,0.00013894,2]
[329821890,1718701839283,-6609.17829312,0.00013894,2]
[329821891,1718701839295,-972.25890954,0.00013894,2]
[329821892,1718701839306,-24.35603065,0.000139,2]
[329821894,1718701839317,-9172.66090427,0.000139,2]
[329821896,1718701839329,-1002.98868808,0.000139,2]
[329821900,1718701839353,-1002.6811364,0.000139,2]
[329821902,1718701839365,-422.96457128,0.000139,2]
[329821924,1718701840597,-1026.14156932,0.000139,2]
[329821925,1718701840610,-167.33947345,0.000139,2]
[329821926,1718701840620,-157.60710861,0.000139,2]
[329821927,1718701840630,-131.8465976,0.000139,2]
[329821928,1718701840756,-1611.00544294,0.000139,2]
[329821929,1718701840769,-467.31889,0.000139,2]
[329821930,1718701840944,-686.57041528,0.000139,2]
[329821931,1718701840954,-378.206491,0.000139,2]
[329821932,1718701840964,-2341.13689638,0.000139,2]
[329821933,1718701840976,-2310.06028183,0.000139,2]
[329821934,1718701841058,-542.70878457,0.000139,2]
[329821935,1718701841071,-517.62500001,0.000139,2]
[329821936,1718701841084,-30652.73843721,0.000139,2]
[329821937,1718701841094,-1556.1138444,0.000139,2]
[329821938,1718701841104,-3301.0438,0.000139,2]
[329821939,1718701841113,-381.31211003,0.00013926,2]
[329821940,1718701841123,-517.84,0.0001399,3]
[329821941,1718701841133,-504892.49446371,0.00014,2]
[329821942,1718701841144,-635.74,0.00014,2]
[329821943,1718701841180,-2875.82477649,0.00014,2]
[329821944,1718701841191,-1479.06618087,0.00014,2]
[329821985,1718701843607,-3972.09929284,0.00014,2]
[329821986,1718701843709,-333.26597757,0.00014,2]
[329821987,1718701843721,-509942.77274479,0.00014,2]
[329821988,1718701843810,-229.19514614,0.00014,2]
[329821989,1718701843820,-246.47744427,0.00014,2]
[329821990,1718701843832,-2589.60784573,0.00014,2]
[329821991,1718701843841,-798.45910142,0.000143,2]
[329821992,1718701843906,-7295.92403971,0.000143,2]
[329821993,1718701843918,-1905.61685887,0.000143,2]
[329821994,1718701843927,-378.20649099,0.00014543,2]
[329821995,1718701843937,-3220.39211029,0.000146,2]
[329822025,1718701846649,-518.84947192,0.00013999,2]
[329822026,1718701846658,-6779.60788971,0.000146,2]
[329822027,1718701846668,-2896.74134577,0.00014718,2]
[329822028,1718701846679,-10000.0,0.000149,2]
[329822029,1718701846689,-378.20649099,0.00015186,2]
[329822030,1718701846698,-1556.11384435,0.00015186,2]
[329822031,1718701846708,-2896.74134577,0.00015536,2]
[329822032,1718701846717,-378.20649099,0.00015829,2]
[329822033,1718701846726,-168.81100199,0.000161,2]
[329822034,1718701846735,-2082.9030387,0.00016355,2]
[329822049,1718701847288,-813.83830707,0.00016355,2]
[329822050,1718701847297,-378.20649099,0.00016471,2]
[329822051,1718701847307,-1556.11384435,0.00016471,2]
[329822052,1718701847316,-529.1,0.00016783,2]
[329822053,1718701847325,-378.20649099,0.00017114,2]
[329822054,1718701847335,-2896.74134577,0.00017173,2]
[329822055,1718701847344,-378.20649099,0.00017757,2]
[329822056,1718701847353,-218.38702984,0.00017757,2]
[329822057,1718701847365,-602.34,0.00017757,2]
[329822058,1718701847377,-735.38681451,0.00017757,2]
[329822059,1718701847386,-476.06637977,0.00017991,2]
[329822060,1718701847424,-1264.21831667,0.00017991,2]
[329822061,1718701847477,-283.2823812,0.00017991,2]
[329822062,1718701847488,-257.63850322,0.00017991,2]
[329822063,1718701847500,-615.53576491,0.00017991,2]
[329822064,1718701847509,-167.33947344,0.000184,2]
[329822065,1718701847519,-378.20649099,0.000184,2]
[329822066,1718701847528,-579.0,0.000188,2]
[329822067,1718701847537,-603.28585914,0.000188,2]
[329822068,1718701847578,-1719.71414086,0.000188,2]
[329822069,1718701847588,-2896.74134577,0.00018809,2]
[329822070,1718701847600,-178.86,0.00018956,2]
[329822071,1718701847610,-561.32,0.00018972,2]
[329822072,1718701847620,-1138.28,0.00018979,2]
[329822073,1718701847629,-250.0,0.00018984,2]
[329822074,1718701847639,-2836.08529,0.00019,2]
[329822075,1718701847648,-378.20649099,0.00019043,2]
[329822076,1718701847657,-1556.11384435,0.00019043,2]
[329822077,1718701847666,-529.1,0.00019047,2]
[329822078,1718701847681,-152.52,0.00019163,2]
[329822079,1718701847692,-152.52,0.00019176,2]
[329822080,1718701847701,-152.52,0.0001919,2]
[329822081,1718701847710,-152.52,0.00019204,2]
[329822082,1718701847719,-152.52,0.00019217,2]
[329822083,1718701847731,-152.52,0.00019231,2]
[329822084,1718701847741,-152.52,0.00019245,2]
[329822085,1718701847752,-152.52,0.00019259,2]
[329822086,1718701847761,-614.0,0.00019269,2]
[329822087,1718701847772,-2896.74134577,0.00019627,2]
[329822088,1718701847782,-378.20649099,0.00019686,2]
[329822089,1718701847792,-1000.0,0.0002,2]
[329822090,1718701847803,-806.0,0.0002,2]
[329822091,1718701847815,-1009.0,0.0002,2]
[329822092,1718701847826,-192.21375615,0.0002,2]
[329822093,1718701847837,-7107.57107859,0.0002,2]
[329822094,1718701847849,-378.20649099,0.00020329,2]
[329822095,1718701847858,-1556.11384435,0.00020329,2]
[329822096,1718701847869,-2896.74134577,0.00020445,2]
[329822097,1718701847879,-500.0,0.00020547,3]
[329822098,1718701847888,-500.0,0.00020821,4]
[329822099,1718701847898,-181.86092,0.00020822,2]
[329822100,1718701847907,-3152.75693266,0.000209,5]
[329822101,1718701847919,-228.24306734,0.000209,5]
[329822102,1718701847929,-378.20649099,0.00020971,2]
[329822103,1718701847938,-175.01466154,0.00021,2]
[329822104,1718701847952,-335.30570427,0.00021,2]
[329822153,1718703031858,-155.0,0.00010912,2]
[329822154,1718703031867,-155.0,0.00010912,2]
[329822155,1718703031877,-523.22653925,0.00010912,2]
[329822156,1718703031888,-745.3310289,0.00010913,2]
[329822157,1718703031899,-323.69754548,0.00010913,2]
[329822158,1718703031908,-132.14245452,0.00010913,2]
[329822159,1718703031920,-17.85754548,0.00010913,2]
[329822160,1718703031929,-543.55356505,0.00010914,2]
[329822161,1718703031938,-3112.87006839,0.00010914,2]
[329822162,1718703031950,-2553.17372,0.00010914,2]
[329822163,1718703031962,-1935.23226309,0.00010914,2]
[329822164,1718703032089,-482.99531256,0.00010914,2]
[329822165,1718703032103,-661.68277074,0.00010914,2]
[329822166,1718703032116,-1784.24305643,0.00010914,2]
[329822167,1718703032126,-2235.00548614,0.00010915,2]
[329822168,1718703032136,-805.99591828,0.00010937,2]
[329822169,1718703032146,-705.25514171,0.00010949,2]
[329822170,1718703032156,-299.83014113,0.00013869,2]
[329822171,1718703032166,-753.15564966,0.000139,2]
[329822173,1718703032176,-150.99,0.000139,2]
[329822175,1718703032185,-749.54697545,0.00013999,2]
[329822178,1718703032195,-676.0,0.00014,2]
[329822179,1718703032205,-223.29,0.00014879,2]
[329822182,1718703032215,-1206.59,0.00014879,2]
[329822184,1718703032225,-223.29,0.00014883,2]
[329822186,1718703032235,-223.29,0.00014887,2]
[329822188,1718703032244,-223.29,0.00014891,2]
[329822190,1718703032254,-223.29,0.00014895,2]
[329822192,1718703032265,-223.29,0.00014899,2]
[329822193,1718703032274,-223.29,0.00014903,2]
[329822194,1718703032284,-223.29,0.00014907,2]
[329822195,1718703032295,-223.29,0.00014911,2]
[329822196,1718703032305,-223.29,0.00014915,2]
[329822197,1718703032315,-223.29,0.00014918,2]
[329822198,1718703032324,-223.29,0.00014922,2]
[329822199,1718703032334,-223.29,0.00014926,2]
[329822200,1718703032345,-223.29,0.0001493,2]
[329822201,1718703032355,-223.29,0.00014934,2]
[329822202,1718703032365,-223.29,0.00014938,2]
[329822203,1718703032375,-223.29,0.00014942,2]
[329822204,1718703032385,-223.29,0.00014946,2]
[329822205,1718703032395,-223.29,0.0001495,2]
[329822206,1718703032404,-223.29,0.00014954,2]
[329822207,1718703032414,-585.99,0.00015255,2]
[329822208,1718703032424,-171.93511785,0.00016354,2]
[329822209,1718703032434,-250.0,0.00017013,2]
[329822210,1718703032444,-449.05,0.00017038,2]
[329822211,1718703032455,-188.2,0.0001707,2]
[329822212,1718703032465,-229.75,0.00017072,2]
[329822213,1718703032475,-165.26,0.00017127,2]
[329822214,1718703032485,-2751.0,0.0001715,2]
[329822215,1718703032495,-23900.0,0.0001715,2]
[329822216,1718703032505,-2024.37,0.00017172,2]
[329822217,1718703032515,-500.0,0.00017208,2]
[329822218,1718703032525,-154.62,0.00017221,2]
[329822219,1718703032535,-156.74,0.00017234,2]
[329822220,1718703032545,-941.02,0.000174,2]
[329822221,1718703032555,-154.62,0.00017446,2]
[329822222,1718703032565,-585.99,0.00017519,2]
[329822223,1718703032574,-154.62,0.0001767,2]
[329822224,1718703032584,-406.568,0.00017726,2]
[329822225,1718703032594,-154.62,0.00017894,2]
[329822226,1718703032603,-154.62,0.00018119,2]
[329822227,1718703032613,-449.05,0.00019168,2]
[329822228,1718703032622,-941.02,0.00019575,2]
[329822229,1718703032632,-585.99,0.00019783,2]
[329822230,1718703032641,-252.01545658,0.00019912,2]
[329822231,1718703032653,-309.20737586,0.00019912,2]
[329822232,1718703032665,-1463.14716756,0.00019912,2]
[329822233,1718703032676,-1000.0,0.0002,2]
[329822234,1718703032685,-500.0,0.00020547,3]
[329822235,1718703032695,-413.6302003,0.00020551,2]
[329822236,1718703032705,-500.0,0.00020821,4]
[329822237,1718703032715,-373.3922,0.000209,2]
[329822238,1718703032726,-489.67963419,0.00021,2]
[329822239,1718703032736,-1000.0,0.00021,3]
[329822240,1718703032746,-1000.0,0.00021,3]
[329822241,1718703032756,-586.38110596,0.00021,2]
[329822242,1718703032769,-897.95,0.00021,2]
[329822243,1718703032781,-474.37904849,0.00021,2]
[329822244,1718703032793,-1026.39824093,0.00021,2]
[329822245,1718703032929,-4559.44142947,0.00021,2]
[329822246,1718703032940,-155.0,0.00021,2]
[329822247,1718703032950,-19798.06682085,0.00021,2]
[329822248,1718703032963,-500.0,0.00021,2]
[329822249,1718703032975,-447.7334154,0.00021,2]
[329822250,1718703032985,-1048.70450835,0.00021,2]
[329822251,1718703032994,-1278.445147,0.00021,2]
[329822252,1718703033005,-2390.72352,0.00021,2]
[329822253,1718703033016,-1250.0,0.00021,2]
[329822254,1718703033027,-10000.0,0.0002107,2]
[329822255,1718703033038,-500.0,0.00021095,5]
[329822256,1718703033047,-361.506,0.00021096,2]
[329822257,1718703033058,-163.674828,0.00021096,2]
[329822258,1718703033068,-154.671,0.00021167,2]
[329822259,1718703033078,-449.05,0.00021298,2]
[329822260,1718703033087,-1000.0,0.000213,2]
[329822261,1718703033098,-500.0,0.00021369,6]
[329822262,1718703033108,-1000.0,0.000214,3]
[329822263,1718703033118,-423.551432,0.00021474,2]
[329822264,1718703033128,-197.226578,0.00021474,2]
[329822265,1718703033137,-423.551432,0.00021474,2]
[329822266,1718703033147,-423.551433,0.00021474,2]
[329822267,1718703033162,-151.157726,0.00021474,2]
[329822268,1718703033172,-224.933234,0.00021474,2]
[329822269,1718703033182,-195.932703,0.00021474,2]
[329822270,1718703033193,-394.453155,0.00021474,2]
[329822271,1718703033203,-223.291856,0.00021474,2]
[329822272,1718703033213,-174.020191,0.00021474,2]
[329822273,1718703033223,-153.278576,0.00021474,2]
[329822274,1718703033234,-724.87626,0.00021474,2]
[329822275,1718703033244,-9316.904424,0.00021474,2]
[329822276,1718703033255,-7756.39733,0.00021474,2]
[329822277,1718703033266,-397.232782,0.00021474,2]
[329822278,1718703033276,-397.232782,0.00021474,2]
[329822279,1718703033288,-1000.0,0.000215,3]
[329822280,1718703033299,-155.0,0.000215,2]
[329822281,1718703033310,-400.0,0.000215,7]
[329822282,1718703033321,-800.0,0.000216,7]
[329822283,1718703033332,-1295.8466,0.00021617,2]
[329822284,1718703033342,-2500.0,0.00021617,2]
[329822285,1718703033353,-1190.17003657,0.00021617,2]
[329822286,1718703033363,-500.0,0.00021643,7]
[329822287,1718703033373,-1200.0,0.000217,7]
[329822288,1718703033383,-14755.1167,0.00021717,2]
[329822289,1718703033392,-119794.2654,0.00021717,2]
[329822290,1718703033402,-1000.0,0.00021717,2]
[329822291,1718703033412,-661.546,0.00021717,2]
[329822292,1718703033422,-423.551432,0.00021742,2]
[329822293,1718703033431,-197.226578,0.00021742,2]
[329822294,1718703033733,-423.551432,0.00021742,2]
[329822295,1718703033742,-423.551433,0.00021742,2]
[329822296,1718703033752,-394.453155,0.00021742,2]
[329822297,1718703033762,-724.87626,0.00021742,2]
[329822298,1718703033772,-9316.904424,0.00021742,2]
[329822299,1718703033782,-7756.39733,0.00021742,2]
[329822300,1718703033792,-397.232782,0.00021742,2]
[329822301,1718703033802,-941.02,0.0002175,2]
[329822302,1718703033814,-1600.0,0.000218,7]
[329822303,1718703033831,-1190.17003653,0.000218,2]
[329822304,1718703033842,-65225.06659628,0.00021817,2]
[329822306,1718703038011,-195.50132898,0.00021717,2]
[329822307,1718703038023,-1165.9005361,0.00021817,2]
[329822308,1718703038738,-1078.01095612,0.00021817,2]
[329822329,1718703040026,-1086.34670665,0.00021817,2]
[329822330,1718703040044,-2654.72704819,0.00021817,2]
[329822331,1718703040065,-522.79989177,0.00021817,2]
[329822332,1718703040083,-1421.277422,0.00021817,2]
[329822333,1718703040182,-2265.80577983,0.00021817,2]
[329822334,1718703040357,-658.7581,0.00021817,2]
[329822335,1718703040376,-892.19844599,0.00021817,2]
[329822336,1718703040393,-14418.31365012,0.00021817,2]
[329822337,1718703040412,-2084.61684403,0.00021817,2]
[329822339,1718703040557,-1967.32742453,0.00021817,2]
[329822342,1718703040576,-4558.85059839,0.00021817,2]
[329822344,1718703040592,-6801.3532,0.00021817,2]
[329822347,1718703040609,-19568.4671,0.00021817,2]
[329822349,1718703040625,-7500.0,0.00021817,2]
[329822352,1718703040642,-165.92564019,0.00021817,2]
[329822355,1718703040658,-157.60710861,0.00021817,2]
[329822357,1718703040673,-1145.70250064,0.00021817,2]
[329822360,1718703040689,-153.278576,0.00021832,2]
[329822361,1718703040704,-249.76388611,0.00021899,2]
[329822362,1718703040719,-2000.0,0.000219,7]
[329822363,1718703040735,-27171.00633948,0.000219,3]
[329822366,1718703040750,-430.73921699,0.00021915,2]
[329822368,1718703040765,-307.93060477,0.00021915,2]
[329822370,1718703040779,-1523.92893793,0.00021915,2]
[329822371,1718703040794,-338.68648196,0.00021915,2]
[329822372,1718703040810,-22654.7548897,0.00021915,2]
[329822373,1718703040824,-172.7696657,0.00021915,2]
[329822374,1718703040839,-3375.07812476,0.00021915,2]
[329822375,1718703040853,-794.83271597,0.00021915,2]
[329822376,1718703040868,-7544.96004909,0.00021915,2]
[329822377,1718703040883,-362.64070701,0.00021915,5]
[329822379,1718703040898,-561.71059308,0.00021915,2]
[329822382,1718703040914,-170.66232196,0.00021915,2]
[329822384,1718703040929,-156.76769233,0.00021915,2]
[329822387,1718703040944,-718.83475834,0.00021915,2]
[329822388,1718703040958,-217.97304809,0.00021915,2]
[329822389,1718703040978,-216.99201886,0.00021915,2]
[329822390,1718703040992,-209.02949711,0.00021915,2]
[329822391,1718703041008,-156.65921326,0.00021915,2]
[329822392,1718703041024,-287.01846402,0.00021915,2]
[329822393,1718703041039,-277.6074059,0.00021915,2]
[329822394,1718703041055,-771.52276447,0.00021915,2]
[329822395,1718703041074,-374.17973608,0.00021915,2]
[329822396,1718703041088,-152.23026392,0.00021916,2]
[329822397,1718703041107,-247.76973608,0.00021916,2]
[329822398,1718703041120,-96.85582821,0.00021917,2]
[329822400,1718703043536,-3755.07708639,0.00021915,2]
[329822401,1718703043547,-550.14417179,0.00021917,2]
[329822402,1718703043556,-192.23297753,0.00021917,2]
[329822403,1718703043566,-1975.21334772,0.00021917,2]
[329822404,1718703043578,-1224.5387,0.00021917,2]
[329822405,1718703043590,-1738.02113,0.00021917,2]
[329822406,1718703043602,-522.00656815,0.00021917,2]
[329822407,1718703043614,-1165.93294732,0.00021917,2]
[329822408,1718703043623,-500.0,0.00021917,2]
[329822409,1718703043633,-208.6416623,0.00021917,2]
[329822410,1718703043645,-291.70358263,0.00021917,2]
[329822411,1718703043655,-500.0,0.00021917,2]
[329822412,1718703043665,-500.0,0.00021917,2]
[329822413,1718703043675,-153.99688029,0.00021917,2]
[329822414,1718703043686,-500.0,0.00021917,2]
[329822415,1718703043695,-500.0,0.00021917,2]
[329822416,1718703043705,-500.0,0.00021917,2]
[329822417,1718703043715,-341.9327895,0.00021917,2]
[329822418,1718703043724,-500.0,0.00021917,2]
[329822419,1718703043734,-500.0,0.00021917,2]
[329822420,1718703043744,-500.0,0.00021917,2]
[329822421,1718703043753,-500.0,0.00021917,2]
[329822422,1718703043763,-500.0,0.00021917,2]
[329822423,1718703043773,-500.0,0.00021917,2]
[329822424,1718703043782,-274.72997934,0.00021917,2]
[329822425,1718703043792,-545.5424767,0.00021917,2]
[329822426,1718703043802,-344.57429154,0.00021917,2]
[329822427,1718703043816,-155.42570846,0.00021917,2]
[329822428,1718703043825,-130.01209486,0.00021917,2]
[329822429,1718703043869,-369.98790514,0.00021917,2]
[329822430,1718703043879,-485.50022132,0.00021917,2]
[329822431,1718703043890,-500.0,0.00021917,2]
[329822432,1718703043900,-333.41707073,0.00021917,2]
[329822433,1718703043912,-166.58292927,0.00021917,2]
[329822434,1718703043922,-500.0,0.00021917,2]
[329822435,1718703043932,-500.0,0.00021917,2]
[329822436,1718703043941,-372.17790754,0.00021917,2]
[329822437,1718703043954,-127.82209246,0.00021917,2]
[329822438,1718703043963,-501.30851428,0.00021917,2]
[329822439,1718703043973,-125.19344256,0.00021917,2]
[329822440,1718703043988,-374.80655744,0.00021917,2]
[329822441,1718703043998,-22.30858399,0.00021917,2]
[329822442,1718703044010,-477.69141601,0.00021917,2]
[329822443,1718703044021,-179.61890329,0.00021917,2]
[329822444,1718703044033,-321.91930114,0.00021917,2]
[329822445,1718703044043,-501.92804048,0.00021917,2]
[329822447,1718703044053,-501.38185139,0.00021917,2]
[329822449,1718703044064,-501.82181966,0.00021917,2]
[329822451,1718703044074,-506.70918247,0.00021917,2]
[329822453,1718703044083,-496.93185717,0.00021917,2]
[329822455,1718703044093,-499.25719064,0.00021917,2]
[329822457,1718703044102,-501.79927568,0.00021917,2]
[329822459,1718703044113,-542.61887659,0.00021917,2]
[329822461,1718703044122,-407.4214093,0.00021917,2]
[329822469,1718703044179,-155.0,0.00021915,2]
[329822471,1718703044189,-92.87952766,0.00021917,2]
[329822473,1718703044199,-48.91821196,0.00021917,2]
[329822507,1718703045989,-187.34367518,0.00021915,2]
[329822509,1718703046000,-451.08178804,0.00021917,2]
[329822511,1718703046011,-500.0,0.00021917,2]
[329822513,1718703046023,-500.0,0.00021917,2]
[329822515,1718703046032,-184.26018314,0.00021917,2]
[329822517,1718703046042,-500.36463686,0.00021917,2]
[329822519,1718703046054,-500.0,0.00021917,2]
[329822521,1718703046063,-647.24204716,0.00021917,2]
[329822523,1718703046073,-291.32542202,0.00021917,2]
[329822525,1718703046083,-500.0,0.00021917,2]
[329822527,1718703046092,-500.0,0.00021917,2]
[329822529,1718703046101,-195.24354536,0.00021917,2]
[329822531,1718703046114,-221.59382924,0.00021917,2]
[329822533,1718703046123,-500.0,0.00021917,2]
[329822535,1718703046133,-527.58272816,0.00021917,2]
[329822537,1718703046143,-500.0,0.00021917,2]
[329822539,1718703046152,-415.46214484,0.00021917,2]
[329822548,1718703046224,-85.23184485,0.00021917,2]
[329822550,1718703046234,-515.82968528,0.00021917,2]
[329822552,1718703046249,-258.48846987,0.00021917,2]
[329822554,1718703046265,-241.51153013,0.00021917,2]
[329822556,1718703046274,-530.66783031,0.00021917,2]
[329822558,1718703046284,-4.1399433,0.00021917,2]
[329822563,1718703046429,-349.26165513,0.00021917,2]
[329822564,1718703046439,-606.64243214,0.00021917,2]
[329822565,1718703046448,-500.0,0.00021917,2]
[329822566,1718703046457,-504.67937351,0.00021917,2]
[329822567,1718703046467,-175.9561451,0.00021917,2]
[329822568,1718703046478,-306.1826698,0.00021917,2]
[329822569,1718703046488,-501.1779304,0.00021917,2]
[329822570,1718703046498,-114.90209269,0.00021917,2]
[329822669,1718703728335,-2020.87865897,0.00013889,2]
[329822670,1718703728361,-3280.4415214,0.00013998,2]
[329822671,1718703728387,-11813.67981963,0.00014,2]
[329822672,1718703732561,-20000.0,0.00014,2]
[329822673,1718703733668,-20000.0,0.00014,2]
[329822674,1718703735607,-20000.0,0.00014,2]
[329822675,1718703736056,-20000.0,0.00014,2]
[329822676,1718703736918,-20000.0,0.00014,2]
[329822677,1718703796846,-219.8,0.0001389,3]
[329822678,1718703796872,-21437.2,0.00014,2]
[329822679,1718703799821,-20000.0,0.00014,2]